[Event "FIDE WY-U16 Olympiad 2022"]
[Site "Nakhchivan"]
[Date "2022.10.03"]
[Round "2.11"]
[White "Abdukhakimov, Akbarali"]
[Black "Bashirli, Saadat"]
[Result "1-0"]
[ECO "D31"]
[WhiteElo "1815"]
[BlackElo "1567"]
[Annotator "COMBH"]
[PlyCount "103"]
[EventDate "2022.10.02"]
[EventType "team-tourn"]
[EventCountry "AZE"]
[TimeControl "40/5400+30:1800+30"]

1. d4 {[%emt 0:00:09]} d5 {[%emt 0:00:07]} 2. c4 {[%emt 0:00:05]} e6 {[%emt 0:00:03]} 3. Nc3 {[%emt 0:00:07]} c6 {[%emt 0:00:19]} 4. e4 {[%emt 0:00:11]} dxe4 {[%emt 0:01:11]} 5. Nxe4 {[%emt 0:00:09]} Bb4+ {[%emt 0:02:45]} 6. Bd2 {[%emt 0:01:02]} Qxd4 {[%emt 0:04:07]} 7. Bxb4 {[%emt 0:00:37]} Qxe4+ {[%emt 0:00:14]} 8. Be2 {[%emt 0:00:16]} Nd7 {[%emt 0:01:28]} 9. Qd6 {[%emt 0:12:31]} a5 {[%emt 0:07:13]} 10. Bc3 {[%emt 0:18:28]} Ne7 {[%emt 0:08:02]} 11. O-O-O {[%emt 0:15:37]} Nf5 {[%emt 0:04:56]} 12. Qc7 {[%emt 0:01:30]} O-O {[%emt 0:09:29]} 13. g4 {[%emt 0:04:38]} Nh4 {[%emt 0:06:40]} 14. Qg3 {[%emt 0:03:42]} Ng6 {[%emt 0:03:37]} 15. Rd4 {[%emt 0:09:34]} Qe5 {[%emt 0:00:29]} 16. f4 {[%emt 0:00:50]} Qc7 {[%emt 0:01:39]} 17. Nh3 {[%emt 0:18:12]} b5 {[%emt 0:11:39]} 18. Rhd1 {[%emt 0:06:07]} b4 {[%emt 0:02:38]} 19. Be1 {[%emt 0:00:54]} c5 {[%emt 0:03:23]} 20. Rd6 {[%emt 0:00:07]} Ra6 {[%emt 0:04:18]} 21. Rxa6 {[%emt 0:02:12]} Bxa6 {[%emt 0:00:02]} 22. f5 {[%emt 0:00:20]} Qxg3 {[%emt 0:01:37]} 23. Bxg3 {[%emt 0:00:04]} Nge5 {[%emt 0:01:00]} 24. fxe6 {[%emt 0:00:25]} fxe6 {[%emt 0:00:11]} 25. Rd6 {[%emt 0:00:05]} Bb7 {[%emt 0:07:28]} 26. Ng5 {[%emt 0:00:20]} h6 {[%emt 0:05:49]} 27. Nxe6 {[%emt 0:00:39]} Rf6 {[%emt 0:00:56]} 28. Bxe5 {[%emt 0:01:56]} Nxe5 {[%emt 0:00:20]} 29. Rd8+ {[%emt 0:00:03]} Kf7 {[%emt 0:00:25]} 30. Nxc5 {[%emt 0:00:05]} Bc6 {[%emt 0:00:44]} 31. h4 {[%emt 0:03:00]} Rf2 {[%emt 0:02:27]} 32. Kd1 {[%emt 0:01:01]} Rh2 {[%emt 0:02:22]} 33. h5 {[%emt 0:00:21]} Rg2 {[%emt 0:00:52]} 34. Rd4 {[%emt 0:01:29]} Nxg4 {[%emt 0:01:48]} 35. Rxg4 {[%emt 0:00:11]} Rxg4 {[%emt 0:00:38]} 36. Bxg4 {[%emt 0:00:04]} Kf6 {[%emt 0:00:22]} 37. Ke2 {[%emt 0:00:14]} Ke5 {[%emt 0:00:19]} 38. Ke3 {[%emt 0:00:07]} Be8 {[%emt 0:01:38]} 39. Nd3+ {[%emt 0:00:30]} Kd6 {[%emt 0:00:24]} 40. Kd4 {[%emt 0:00:07]} g6 {[%emt 0:00:49]} 41. c5+ {[%emt 0:30:08]} Kc7 {[%emt 0:30:11]} 42. hxg6 {[%emt 0:00:20]} Bxg6 {[%emt 0:00:07]} 43. Nf4 {[%emt 0:00:11]} Bf7 {[%emt 0:00:31]} 44. Be6 {[%emt 0:00:39]} Be8 {[%emt 0:00:14]} 45. Nd5+ {[%emt 0:00:15]} Kc6 {[%emt 0:00:14]} 46. Nf6 {[%emt 0:00:05]} Bg6 {[%emt 0:00:16]} 47. Bd7+ {[%emt 0:00:09]} Kc7 {[%emt 0:00:13]} 48. c6 {[%emt 0:00:06]} Bf7 {[%emt 0:00:39]} 49. Ne8+ {[%emt 0:00:40]} Kd8 {[%emt 0:00:16]} 50. Kc5 {[%emt 0:00:19]} Ke7 {[%emt 0:01:42]} 51. Kb6 {[%emt 0:00:31]} Bd5 {[%emt 0:00:28]} 52. c7 {[%emt 0:00:33]} 1-0

[Event "FIDE WY-U16 Olympiad 2022"]
[Site "Nakhchivan"]
[Date "2022.10.03"]
[Round "2.12"]
[White "Boramanikar Tanisha S"]
[Black "Hernandez Diaz, Paula Sofia"]
[Result "1-0"]
[ECO "B22"]
[WhiteElo "1740"]
[BlackElo "1759"]
[Annotator "COMBH"]
[PlyCount "109"]
[EventDate "2022.10.02"]
[EventType "team-tourn"]
[EventCountry "AZE"]
[TimeControl "40/5400+30:1800+30"]

1. e4 {[%emt 0:00:15]} c5 {[%emt 0:00:11]} 2. c3 {[%emt 0:00:11]} d5 {[%emt 0:00:09]} 3. exd5 {[%emt 0:00:05]} Qxd5 {[%emt 0:00:06]} 4. d4 {[%emt 0:00:08]} Nc6 {[%emt 0:01:58]} 5. Nf3 {[%emt 0:00:10]} g6 {[%emt 0:00:16]} 6. Be3 {[%emt 0:03:27]} cxd4 {[%emt 0:01:14]} 7. cxd4 {[%emt 0:00:23]} Qa5+ {[%emt 0:00:08]} 8. Nc3 {[%emt 0:00:26]} Bg7 {[%emt 0:00:58]} 9. Bc4 {[%emt 0:04:48]} Nh6 {[%emt 0:03:56]} 10. Qb3 {[%emt 0:05:43]} O-O {[%emt 0:01:25]} 11. d5 {[%emt 0:01:51]} Nb4 {[%emt 0:06:53]} 12. O-O {[%emt 0:03:35]} Bf5 {[%emt 0:04:15]} 13. Bxh6 {[%emt 0:18:32]} Bxh6 {[%emt 0:04:37]} 14. Nd4 {[%emt 0:00:36]} Bd3 {[%emt 0:03:28]} 15. Bxd3 {[%emt 0:00:40]} Nxd3 {[%emt 0:00:33]} 16. Rad1 {[%emt 0:04:08]} Nc5 {[%emt 0:03:44]} 17. Qc4 {[%emt 0:02:06]} Na6 {[%emt 0:11:11]} 18. Rfe1 {[%emt 0:02:49]} Rfe8 {[%emt 0:06:39]} 19. Ndb5 {[%emt 0:08:52]} Rec8 {[%emt 0:09:52]} 20. Qg4 {[%emt 0:04:14]} Bf8 {[%emt 0:01:59]} 21. Re3 {[%emt 0:08:28]} Rc5 {[%emt 0:07:40]} 22. a4 {[%emt 0:02:43]} Qb4 {[%emt 0:13:10]} 23. Qe2 {[%emt 0:02:58]} Qc4 {[%emt 0:07:43]} 24. Qe1 {[%emt 0:01:49]} Rcc8 {[%emt 0:03:51]} 25. Rf3 {[%emt 0:05:24]} Nb4 {[%emt 0:04:37]} 26. Qd2 {[%emt 0:06:07]} Rd8 {[%emt 0:01:43]} 27. Rf4 {[%emt 0:04:50]} Qc5 {[%emt 0:00:26]} 28. Rd4 {[%emt 0:01:11]} a5 {[%emt 0:00:40]} 29. Qe2 {[%emt 0:02:23]} Bg7 {[%emt 0:00:34]} 30. Rc4 {[%emt 0:00:43]} Qb6 {[%emt 0:00:25]} 31. Qxe7 {[%emt 0:00:34]} Nd3 {[%emt 0:01:07]} 32. Qe2 {[%emt 0:01:36]} Ne5 {[%emt 0:00:23]} 33. Re4 {[%emt 0:00:32]} Nd7 {[%emt 0:00:20]} 34. Qe3 {[%emt 0:01:47]} Nc5 {[%emt 0:00:45]} 35. Rc4 {[%emt 0:01:12]} Rac8 {[%emt 0:00:06]} 36. d6 {[%emt 0:01:11]} Bxc3 {[%emt 0:00:53]} 37. Nxc3 {[%emt 0:01:13]} Rxd6 {[%emt 0:00:31]} 38. Nd5 {[%emt 0:00:28]} Rcd8 39. Qxc5 {[%emt 0:00:49]} Qb3 {[%emt 0:01:02]} 40. Ne7+ {[%emt 0:00:40]} Kg7 {[%emt 0:00:27]} 41. Re1 {[%emt 0:30:36]} Re6 {[%emt 0:30:28]} 42. Rcc1 {[%emt 0:00:00]} Kf6 {[%emt 0:00:00]} 43. h4 {[%emt 0:00:00]} h6 {[%emt 0:00:00]} 44. h5 {[%emt 0:00:00]} Rd7 {[%emt 0:00:00]} 45. Nc8 {[%emt 0:00:00]} Qxb2 {[%emt 0:00:00]} 46. Rxe6+ {[%emt 0:00:00]} fxe6 {[%emt 0:00:00]} 47. Rc3 {[%emt 0:00:00]} Qa1+ {[%emt 0:00:00]} 48. Kh2 {[%emt 0:00:00]} Qxa4 {[%emt 0:00:00]} 49. Rf3+ {[%emt 0:00:00]} Kg7 {[%emt 0:00:00]} 50. Qf8+ {[%emt 0:00:00]} Kh7 {[%emt 0:00:00]} 51. hxg6+ {[%emt 0:00:00]} Kxg6 {[%emt 0:00:00]} 52. Rg3+ {[%emt 0:00:00]} Kh5 {[%emt 0:00:00]} 53. Qf3+ {[%emt 0:00:00]} Kh4 {[%emt 0:00:00]} 54. Qf6+ {[%emt 0:00:00]} Kh5 {[%emt 0:00:00]} 55. Qg6+ {[%emt 0:00:00]} 1-0

[Event "FIDE WY-U16 Olympiad 2022"]
[Site "Nakhchivan"]
[Date "2022.10.03"]
[Round "2.12"]
[White "Budagova, Leyla"]
[Black "Bozorov, Javokhir"]
[Result "0-1"]
[ECO "B80"]
[WhiteElo "1356"]
[BlackElo "1844"]
[Annotator "NA RC COMBH"]
[PlyCount "80"]
[EventDate "2022.10.02"]
[EventType "team-tourn"]
[EventCountry "AZE"]
[SourceTitle "playchess.com"]
[Source "ChessBase"]
[SourceQuality "1"]
[WhiteTeam "Azerbaijan"]
[BlackTeam "Uzbekistan"]
[WhiteTeamCountry "AZE"]
[BlackTeamCountry "UZB"]
[TimeControl "40/5400+30:1800+30"]

1. e4 {[%emt 0:00:02]} c5 {[%emt 0:00:09]} 2. Nf3 {[%emt 0:00:07]} d6 {[%emt 0:00:10]} 3. d4 {[%emt 0:00:04]} cxd4 {[%emt 0:00:05]} 4. Nxd4 {[%emt 0:00:04]} Nf6 {[%emt 0:00:09]} 5. Nc3 {[%emt 0:00:07]} a6 {[%emt 0:00:06]} 6. Be3 {[%emt 0:00:35]} e6 {[%emt 0:00:28]} 7. Qd2 {[%emt 0:03:41]} Be7 {[%emt 0:02:21]} 8. f3 {[%emt 0:05:05]} b5 {[%emt 0:03:10]} 9. a3 {[%emt 0:09:18]} Bb7 {[%emt 0:04:04]} 10. O-O-O {[%emt 0:10:38]} Nbd7 {[%emt 0:02:00]} 11. Nb3 {[%emt 0:20:47]} Rc8 {[%emt 0:12:39]} 12. Bf4 {[%emt 0:09:07]} e5 {[%emt 0:02:14]} 13. Be3 {[%emt 0:02:07]} O-O {[%emt 0:04:45]} 14. g4 {[%emt 0:04:28]} Nc5 {[%emt 0:12:03]} 15. Nxc5 {[%emt 0:09:33]} dxc5 {[%emt 0:00:15]} 16. Qxd8 {[%emt 0:04:46]} Rfxd8 {[%emt 0:00:34]} 17. Bh3 {[%emt 0:02:12]} Ne8 {[%emt 0:04:25]} 18. g5 {[%emt 0:04:27]} Rb8 {[%emt 0:01:10]} 19. f4 {[%emt 0:01:54]} Nc7 {[%emt 0:13:59]} 20. fxe5 {[%emt 0:03:25]} b4 {[%emt 0:00:30]} 21. axb4 {[%emt 0:01:22]} cxb4 {[%emt 0:00:07]} 22. Ne2 {[%emt 0:06:36]} Bxe4 {[%emt 0:00:55]} 23. Rhf1 {[%emt 0:00:11]} Nd5 {[%emt 0:00:12]} 24. Bd2 {[%emt 0:00:44]} Bc5 {[%emt 0:03:11]} 25. e6 {[%emt 0:00:52]} fxe6 {[%emt 0:10:20]} 26. Bxe6+ {[%emt 0:00:12]} Kh8 {[%emt 0:00:01]} 27. Bxd5 {[%emt 0:00:13]} Bxd5 {[%emt 0:02:08]} 28. Rf5 {[%emt 0:00:16]} Rbc8 {[%emt 0:04:14]} 29. Nf4 {[%emt 0:00:35]} Bc4 {[%emt 0:05:42]} 30. Ng2 {[%emt 0:01:14]} Bd4 {[%emt 0:01:39]} 31. Kb1 {[%emt 0:00:41]} b3 {[%emt 0:00:16]} 32. Bc3 {[%emt 0:00:17]} Bxc3 {[%emt 0:00:59]} 33. Rxd8+ {[%emt 0:00:02]} Rxd8 {[%emt 0:00:01]} 34. bxc3 {[%emt 0:00:19]} bxc2+ {[%emt 0:00:01]} 35. Kc1 {[%emt 0:00:37]} Bb3 {[%emt 0:01:03]} 36. Kb2 {[%emt 0:00:22]} g6 {[%emt 0:00:07]} 37. Rf2 {[%emt 0:01:01]} Rd1 {[%emt 0:00:10]} 38. Rxc2 {[%emt 0:00:02]} Bxc2 {[%emt 0:00:01]} 39. Kxc2 {[%emt 0:00:06]} Rg1 {[%emt 0:00:12]} 40. Ne3 {[%emt 0:00:27]} Rxg5 {[%emt 0:00:08]} 0-1

[Event "FIDE WY-U16 Olympiad 2022"]
[Site "Nakhchivan"]
[Date "2022.10.03"]
[Round "2.13"]
[White "Arkadan, Adib"]
[Black "Wiratunga, Jenith"]
[Result "1-0"]
[ECO "D56"]
[WhiteElo "1884"]
[BlackElo "1741"]
[Annotator "NA RC COMBH"]
[PlyCount "63"]
[EventDate "2022.10.02"]
[EventType "team-tourn"]
[EventCountry "AZE"]
[SourceTitle "playchess.com"]
[Source "ChessBase"]
[SourceQuality "1"]
[WhiteTeam "Lebanon"]
[BlackTeam "Sri Lanka"]
[WhiteTeamCountry "LBN"]
[BlackTeamCountry "SRI"]
[TimeControl "40/5400+30:1800+30"]

1. Nf3 {[%emt 0:00:11]} Nf6 {[%emt 0:00:07]} 2. c4 {[%emt 0:00:35]} e6 {[%emt 0:00:02]} 3. d4 {[%emt 0:03:25]} d5 {[%emt 0:00:07]} 4. Nc3 {[%emt 0:04:04]} Be7 {[%emt 0:00:06]} 5. Bg5 {[%emt 0:00:14]} h6 {[%emt 0:00:12]} 6. Bh4 {[%emt 0:00:07]} O-O {[%emt 0:00:05]} 7. e3 {[%emt 0:00:15]} Ne4 {[%emt 0:00:25]} 8. Bg3 {[%emt 0:11:55]} Nxg3 {[%emt 0:07:35]} 9. hxg3 {[%emt 0:00:05]} dxc4 {[%emt 0:02:37]} 10. Bxc4 {[%emt 0:00:18]} c5 {[%emt 0:01:07]} 11. Qe2 {[%emt 0:06:36]} Nc6 {[%emt 0:07:30]} 12. Rd1 {[%emt 0:02:41]} cxd4 {[%emt 0:01:04]} 13. exd4 {[%emt 0:01:58]} Qa5 {[%emt 0:02:37]} 14. O-O {[%emt 0:04:56]} Bf6 {[%emt 0:01:55]} 15. a3 {[%emt 0:16:31]} Rd8 {[%emt 0:06:38]} 16. Qe4 {[%emt 0:09:30]} Rb8 {[%emt 0:08:32]} 17. d5 {[%emt 0:10:01]} Bxc3 {[%emt 0:00:41]} 18. bxc3 {[%emt 0:00:41]} exd5 {[%emt 0:01:06]} 19. Bxd5 {[%emt 0:00:52]} Bd7 {[%emt 0:06:19]} 20. Qc4 {[%emt 0:03:29]} Be8 {[%emt 0:01:18]} 21. Rfe1 {[%emt 0:01:33]} Qxa3 {[%emt 0:16:10]} 22. Rxe8+ {[%emt 0:01:24]} Rxe8 {[%emt 0:03:24]} 23. Bxf7+ {[%emt 0:00:08]} Kh8 {[%emt 0:00:02]} 24. Bxe8 {[%emt 0:00:14]} Rxe8 {[%emt 0:00:03]} 25. Nh4 {[%emt 0:02:01]} Ne5 {[%emt 0:20:00]} 26. Qb5 {[%emt 0:05:50]} Re6 {[%emt 0:09:55]} 27. Qxb7 {[%emt 0:08:47]} Qxc3 {[%emt 0:01:06]} 28. Rd8+ {[%emt 0:00:55]} Kh7 {[%emt 0:00:32]} 29. Qe4+ {[%emt 0:00:06]} g6 {[%emt 0:01:06]} 30. Qb7+ {[%emt 0:00:09]} Nf7 {[%emt 0:02:25]} 31. Qxf7+ {[%emt 0:00:02]} Qg7 {[%emt 0:00:11]} 32. Qxe6 {[%emt 0:00:03]} 1-0

[Event "FIDE WY-U16 Olympiad 2022"]
[Site "Nakhchivan"]
[Date "2022.10.03"]
[Round "2.14"]
[White "Zhakshylykov, Erzhan"]
[Black "Talibov, Shiroghlan"]
[Result "1/2-1/2"]
[ECO "E32"]
[WhiteElo "2293"]
[BlackElo "2299"]
[PlyCount "87"]
[EventDate "2022.10.02"]
[EventType "team-tourn"]
[EventCountry "AZE"]
[TimeControl "40/5400+30:1800+30"]

1. d4 {[%emt 0:00:04]} Nf6 {[%emt 0:00:04]} 2. c4 {[%emt 0:00:18]} e6 {[%emt 0:00:04]} 3. Nc3 {[%emt 0:00:28]} Bb4 {[%emt 0:00:07]} 4. Qc2 {[%emt 0:00:04]} O-O $11 {[%emt 0:00:11]} 5. a3 {[%emt 0:02:06]} Bxc3+ {[%emt 0:00:16]} 6. Qxc3 {[%emt 0:00:07]} b6 {[%emt 0:00:01]} 7. Bg5 {[%emt 0:00:44]} Bb7 {[%emt 0:00:07]} 8. e3 {[%emt 0:00:32]} d6 {[%emt 0:00:57]} 9. Ne2 {[%emt 0:00:50]} h6 {[%emt 0:00:32]} 10. Bh4 {[%emt 0:01:32]} Nbd7 {[%emt 0:00:25]} 11. Qc2 {[%emt 0:01:25]} c5 {[%emt 0:07:24]} 12. Rd1 {[%emt 0:08:13]} Qc7 {[%emt 0:11:50]} 13. Nc3 {[%emt 0:24:46]} a6 {[%emt 0:03:29]} 14. dxc5 {[%emt 0:13:24]} Qxc5 {[%emt 0:27:20]} 15. Qd2 {[%emt 0:05:18]} d5 {[%emt 0:04:05]} 16. cxd5 {[%emt 0:04:25]} Nxd5 {[%emt 0:05:06]} 17. Nxd5 {[%emt 0:20:49]} Qxd5 {[%emt 0:15:12]} 18. Qxd5 {[%emt 0:02:17]} exd5 {[%emt 0:05:25]} 19. Be7 {[%emt 0:07:40]} Rfe8 {[%emt 0:03:12]} 20. Bb4 {[%emt 0:00:16]} f5 {[%emt 0:01:36]} 21. Bd3 {[%emt 0:03:08]} f4 {[%emt 0:02:14]} 22. Bg6 {[%emt 0:01:45]} Re5 {[%emt 0:00:08]} 23. O-O {[%emt 0:01:09]} Rg5 {[%emt 0:04:32]} 24. Bc2 {[%emt 0:00:09]} fxe3 {[%emt 0:00:42]} 25. fxe3 {[%emt 0:00:07]} Re8 {[%emt 0:00:36]} 26. e4 {[%emt 0:01:04]} Nf6 {[%emt 0:01:10]} 27. Bd2 {[%emt 0:00:19]} Rg4 {[%emt 0:03:09]} 28. h3 {[%emt 0:00:13]} Rh4 {[%emt 0:01:13]} 29. exd5 {[%emt 0:00:15]} Bxd5 {[%emt 0:01:36]} 30. Rde1 {[%emt 0:00:15]} Rxe1 {[%emt 0:00:44]} 31. Rxe1 {[%emt 0:00:12]} Rc4 {[%emt 0:00:45]} 32. Bc3 {[%emt 0:00:24]} Rc7 {[%emt 0:00:50]} 33. Rd1 {[%emt 0:00:37]} Be4 {[%emt 0:00:58]} 34. Bb3+ {[%emt 0:00:49]} Kh7 {[%emt 0:00:10]} 35. Rd6 {[%emt 0:00:41]} Rc6 {[%emt 0:00:34]} 36. Rxc6 {[%emt 0:00:34]} Bxc6 {[%emt 0:00:06]} 37. Bd4 {[%emt 0:00:23]} b5 {[%emt 0:01:02]} 38. Be6 {[%emt 0:00:27]} Bb7 {[%emt 0:00:52]} 39. g4 {[%emt 0:00:47]} Kg6 {[%emt 0:00:32]} 40. Kf2 {[%emt 0:01:08]} Ne4+ 41. Ke3 {[%emt 0:30:14]} Ng5 {[%emt 0:30:53]} 42. Bf5+ {[%emt 0:00:07]} Kf7 {[%emt 0:00:46]} 43. h4 {[%emt 0:00:00]} Nf3 {[%emt 0:00:00]} 44. Bc8 {[%emt 0:00:00]} 1/2-1/2

[Event "FIDE WY-U16 Olympiad 2022"]
[Site "Nakhchivan"]
[Date "2022.10.03"]
[Round "2.14"]
[White "Kiriella, K G T S D"]
[Black "Karam, Youssef Mark"]
[Result "0-1"]
[ECO "B46"]
[WhiteElo "1907"]
[BlackElo "1488"]
[Annotator "TA"]
[PlyCount "80"]
[EventDate "2022.10.02"]
[EventType "team-tourn"]
[EventCountry "AZE"]
[TimeControl "40/5400+30:1800+30"]

{[%evp 17,80,-2,7,-39,-9,-12,44,18,12,0,68,25,0,23,29,-105,-69,-66,-72,-144,-125,-384,-129,-600,-590,-576,-592,-579,-594,-589,-591,-739,-732,-716,-684,-643,-504,-802,-787,-781,-774,-1148,-876,-1208,-1181,-1337,-1329,-29961,-6636,-29972,-29944,-29973,-29976,-29988,-29980,-29981,-29982,-29982,-29982,-29982,-29983,-29983,-29984,-29989,-29990]} 1. e4 {[%emt 0:00:03]} c5 {[%emt 0:00:05]} 2. Nf3 {[%emt 0:00:03]} a6 {[%emt 0:00:15]} 3. Nc3 {[%emt 0:00:51]} Nc6 {[%emt 0:01:46]} 4. d4 {[%emt 0:05:53]} cxd4 {[%emt 0:00:08]} 5. Nxd4 {[%emt 0:00:05]} e6 {[%emt 0:02:50]} 6. Nxc6 {[%emt 0:03:13]} bxc6 {[%emt 0:00:26]} 7. e5 {[%emt 0:04:36]} Qc7 {[%emt 0:02:10]} 8. f4 {[%emt 0:00:39]} d6 {[%emt 0:04:47]} 9. exd6 {[%emt 0:00:41]} Bxd6 {[%emt 0:00:52]} 10. g3 {[%emt 0:08:51] B46: Sicilian: Taimanov: 5 Nc3 a6.} (10. Ne4 $11 {should be considered.} Be7 11. Bc4) 10... Nf6 {[%emt 0:01:38]} 11. Bg2 {[%emt 0:00:11] [#]} Bc5 $146 {[%emt 0:01:39]} (11... O-O $11) ({Predecessor:} 11... O-O 12. O-O Rb8 13. b3 Bc5+ 14. Kh1 Rd8 15. Qe1 Bd4 16. Rb1 a5 17. Ne2 Ba6 {1-0 (57) Shirov,A (2713)-Svidler,P (2733) Leon 2004}) 12. Qf3 {[%emt 0:05:33] White is slightly better.} (12. Na4 $5 {[%cal Ra4c5]}) 12... Nd5 {[%emt 0:04:23]} 13. Ne4 {[%emt 0:09:22]} Ba7 {[%emt 0:15:18]} ({Better is} 13... Bb6 $1 $11) 14. c4 {[%emt 0:03:52]} (14. Qa3 $5 {[%cal Re4d6]}) 14... O-O {[%emt 0:10:03][%cal Oc7e7]} 15. cxd5 {[%emt 0:16:44]} exd5 {[%emt 0:00:15]} 16. Nf2 {[%emt 0:02:33]} (16. Nc3 $1 $11) 16... Re8+ {[%emt 0:12:22][%mdl 1024] Black has strong compensation.} 17. Kd1 {[%emt 0:03:24]} Qb6 {[%emt 0:05:48] [#] ...Qd4+ is the strong threat. Black is more active.} 18. Nd3 {[%emt 0:18:23]} (18. Re1 $142 Bf5 19. Rxe8+ Rxe8 20. g4 Qd4+ 21. Bd2) 18... Bf5 $36 {[%emt 0:10:03][%mdl 2048] White is under strong pressure.} 19. b3 $2 {[%emt 0:09:41][%mdl 8192]} ({Wrong is} 19. g4 $2 Be4 20. Qe2 Qd4 $17) (19. Re1 $17) 19... Qd4 $2 {[%emt 0:01:46] The board is on fire.} (19... Be4 $19 {is more deadly.} 20. Qe2 Bxg2 21. Qxg2 Qd4) 20. Kc2 $2 {[%emt 0:00:04][%mdl 8192] This costs White the game.} Qxa1 $19 {[%emt 0:01:55]} 21. Bb2 {[%emt 0:00:22]} Qxa2 {[%emt 0:00:22] ( -> ...Rab8)} 22. Ra1 {[%emt 0:00:28]} Qxa1 {[%emt 0:04:32]} ({Weaker is} 22... Bxd3+ 23. Qxd3 Qxa1 24. Bxa1 $18) 23. Bxa1 {[%emt 0:00:08]} Re3 {[%emt 0:00:11]} 24. Qh5 {[%emt 0:01:17]} Bxd3+ {[%emt 0:01:12]} 25. Kd2 {[%emt 0:00:12]} Bg6 {[%emt 0:04:29]} 26. Qg4 {[%emt 0:00:06]} f5 {[%emt 0:02:05]} 27. Qg5 {[%emt 0:01:35]} (27. Qd1 $142 Rb8 28. Qc1) 27... Rae8 {[%emt 0:00:16] Hoping for ...Re2+.} 28. Be5 {[%emt 0:00:05]} Rxb3 {[%emt 0:01:53]} 29. h4 {[%emt 0:00:36]} Bf2 {[%emt 0:00:08]} 30. g4 {[%emt 0:00:54]} Rg3 {[%emt 0:00:17][%csl LRg2,LRg4]} 31. Bf3 {[%emt 0:00:25]} Rxf3 {[%emt 0:04:10]} 32. h5 {[%emt 0:00:07] [#]} Rxe5 $1 {[%emt 0:00:27]} 33. hxg6 {[%emt 0:00:13]} (33. fxe5 Be3+) 33... Re8 {[%emt 0:02:04] Black mates.} 34. gxh7+ {[%emt 0:00:24]} Kh8 {[%emt 0:00:07]} 35. gxf5 {[%emt 0:00:48]} Rxf4 {[%emt 0:00:44]} 36. Qg6 {[%emt 0:01:23]} Be1+ {[%emt 0:01:16]} 37. Kd1 {[%emt 0:00:16]} Re5 {[%emt 0:00:27]} 38. Qf7 {[%emt 0:01:31]} Kxh7 {[%emt 0:00:37]} 39. Qg6+ {[%emt 0:01:29]} Kg8 {[%emt 0:00:14]} 40. Qxc6 {[%emt 0:00:29]} Rd4+ {[%emt 0:00:06] Weighted Error Value: White=1.56/Black=0.52} 0-1

[Event "FIDE WY-U16 Olympiad 2022"]
[Site "Nakhchivan"]
[Date "2022.10.03"]
[Round "2.15"]
[White "Fawaz, Mohamad"]
[Black "Nabil Nazar, Mohamed"]
[Result "0-1"]
[ECO "B13"]
[WhiteElo "1394"]
[BlackElo "1861"]
[Annotator "COMBH"]
[PlyCount "126"]
[EventDate "2022.10.02"]
[EventType "team-tourn"]
[EventCountry "AZE"]
[TimeControl "40/5400+30:1800+30"]

1. e4 {[%emt 0:00:14]} c6 {[%emt 0:00:01]} 2. d4 {[%emt 0:01:00]} d5 {[%emt 0:00:03]} 3. exd5 {[%emt 0:00:10]} cxd5 {[%emt 0:00:02]} 4. Bd3 {[%emt 0:00:12]} Nc6 {[%emt 0:01:01]} 5. c3 {[%emt 0:00:06]} Nf6 {[%emt 0:00:37]} 6. h3 {[%emt 0:00:09]} e6 {[%emt 0:00:46]} 7. Nf3 {[%emt 0:00:18]} Bd6 {[%emt 0:00:35]} 8. O-O {[%emt 0:02:10]} O-O {[%emt 0:00:07]} 9. Bg5 {[%emt 0:05:50]} h6 {[%emt 0:01:20]} 10. Bxf6 {[%emt 0:00:10]} Qxf6 {[%emt 0:00:10]} 11. Re1 {[%emt 0:01:37]} e5 {[%emt 0:01:41]} 12. dxe5 {[%emt 0:00:39]} Nxe5 {[%emt 0:00:09]} 13. Nxe5 {[%emt 0:00:25]} Bxe5 {[%emt 0:00:03]} 14. Nd2 {[%emt 0:00:12]} Bc7 {[%emt 0:08:25]} 15. Nf3 {[%emt 0:05:15]} Bd7 {[%emt 0:03:04]} 16. Bc2 {[%emt 0:05:45]} Rad8 {[%emt 0:08:20]} 17. Qd3 {[%emt 0:12:16]} g6 {[%emt 0:00:22]} 18. Qd4 {[%emt 0:00:43]} Qd6 {[%emt 0:09:24]} 19. Rad1 {[%emt 0:06:49]} Bc6 {[%emt 0:07:36]} 20. Qh4 {[%emt 0:12:28]} Kg7 {[%emt 0:01:50]} 21. Rd4 {[%emt 0:18:47]} Rfe8 {[%emt 0:03:40]} 22. Red1 {[%emt 0:03:28]} Re2 {[%emt 0:01:00]} 23. R4d2 {[%emt 0:02:53]} Rde8 {[%emt 0:12:38]} 24. Bd3 {[%emt 0:03:54]} Rxd2 {[%emt 0:06:46]} 25. Rxd2 {[%emt 0:00:07]} a5 {[%emt 0:03:58]} 26. Qd4+ {[%emt 0:04:34]} Kh7 {[%emt 0:00:38]} 27. Qh4 {[%emt 0:01:30]} a4 {[%emt 0:03:38]} 28. Bc2 {[%emt 0:03:22]} a3 {[%emt 0:07:10]} 29. b3 {[%emt 0:00:49]} Bd8 {[%emt 0:13:02]} 30. Qd4 {[%emt 0:08:00]} Bf6 {[%emt 0:00:10]} 31. Qd3 {[%emt 0:00:15]} Qc5 {[%emt 0:00:38]} 32. Nd4 {[%emt 0:01:33]} Re1+ {[%emt 0:01:21]} 33. Kh2 {[%emt 0:00:02]} Qd6+ {[%emt 0:00:44]} 34. g3 {[%emt 0:00:11]} Bd7 {[%emt 0:00:51]} 35. Nf3 {[%emt 0:01:20]} Re7 {[%emt 0:00:53]} 36. c4 {[%emt 0:00:31]} Qe6 {[%emt 0:00:23]} 37. Qf1 {[%emt 0:00:40]} dxc4 {[%emt 0:00:37]} 38. bxc4 {[%emt 0:00:02]} Bc6 {[%emt 0:00:30]} 39. Bd1 {[%emt 0:00:40]} Qf5 {[%emt 0:01:15]} 40. Nd4 {[%emt 0:00:33]} Bxd4 {[%emt 0:01:55]} 41. Rxd4 {[%emt 0:30:03]} Re4 {[%emt 0:06:20]} 42. Bc2 {[%emt 0:00:00]} Qf3 {[%emt 0:09:14]} 43. Bxe4 {[%emt 0:00:00]} Bxe4 {[%emt 0:00:01]} 44. Rd2 {[%emt 0:00:00]} h5 {[%emt 0:00:24]} 45. h4 {[%emt 0:00:00]} f5 {[%emt 0:00:53]} 46. c5 {[%emt 0:00:00]} f4 {[%emt 0:00:44]} 47. Rd1 {[%emt 0:00:00]} Bd5 {[%emt 0:03:50]} 48. Re1 {[%emt 0:00:00]} Bxa2 {[%emt 0:07:27]} 49. Re7+ {[%emt 0:00:13]} Kg8 {[%emt 0:01:43]} 50. Qe2 {[%emt 0:03:45]} fxg3+ {[%emt 0:02:00]} 51. fxg3 {[%emt 0:00:03]} Qxe2+ {[%emt 0:00:13]} 52. Rxe2 {[%emt 0:00:01]} Bb1 {[%emt 0:00:18]} 53. Re3 {[%emt 0:00:31]} a2 {[%emt 0:00:12]} 54. Ra3 {[%emt 0:00:04]} Kf7 {[%emt 0:00:11]} 55. Kg2 {[%emt 0:01:20]} Ke6 {[%emt 0:00:08]} 56. Kf2 {[%emt 0:00:45]} Kd5 {[%emt 0:00:03]} 57. Ke3 {[%emt 0:00:25]} Kxc5 {[%emt 0:00:12]} 58. Kd2 {[%emt 0:00:13]} Kb4 {[%emt 0:00:25]} 59. Ra7 {[%emt 0:00:41]} b5 {[%emt 0:00:16]} 60. Kc1 {[%emt 0:00:23]} Kb3 {[%emt 0:00:17]} 61. Ra5 {[%emt 0:01:04]} b4 {[%emt 0:00:10]} 62. Ra7 {[%emt 0:00:15]} Bd3 {[%emt 0:00:16]} 63. Ra8 {[%emt 0:01:55]} Bb5 {[%emt 0:00:11]} 0-1